Cogmind - Beta 11.1 @@@ ROGUE MODE // 2022.07.24 @ 11:29:45 Player: Candesce Result: Self-destructed Performance ------------- Evolutions (4) 2000 Regions Visited (11) 2200 Robots Destroyed (48) 240 Value Destroyed (1805) 1805 Prototype IDs (44) 880 Alien Tech Used (0) 0 Bonus (1204) 1204 TOTAL SCORE: 8329 Bonus ------- Follower Combat Kills 404 Entered DSFs 500 Aligned with FarCom 300 Cogmind --------- Core Integrity 595/850 Matter 196/300 Energy 259/315 System Corruption 2% Temperature Cool (10) Movement Hovering (65) Location -6/Lower Caves Parts ------- > --- POWER (2) -------- Neutrino Core > --- PROPULSION (5) --- Combat Airjet Combat Airjet Antigrav Array > --- UTILITY (5) ------ Large Storage Unit Advanced Weight Redist. System Advanced Targeting Computer Improved Hacking Suite > --- WEAPON (3) ------- Impact Mace > --- INVENTORY (15) --- Improved Gravmag System Improved Gravmag System Improved Cryofiber Web Experimental Cooling System Energy Well (0) Faulty Experimental Targeting Computer Improved Medium Armor Plating Authchip [Propulsion] Improved System Guard Plasma Cannon Plasma Cannon Plasma Cannon Firepult Peak State ------------ > --- POWER ------------ Micro Nuclear Core Neutrino Core > --- PROPULSION ------- Improved Gravmag System Combat Airjet Combat Airjet Antigrav Array > --- UTILITY ---------- Large Storage Unit Advanced Weight Redist. System Advanced Targeting Computer Force Field Improved Hacking Suite > --- WEAPON ----------- Long-range Missile Launcher Improved Datajack Impact Mace > --- INVENTORY -------- Improved Gravmag System Improved Gravmag System Improved Cryofiber Web Experimental Cooling System Energy Well Experimental Targeting Computer Improved Medium Armor Plating Authchip [Propulsion] Improved System Guard Plasma Cannon Plasma Cannon Plasma Cannon Firepult [Rating: 79] Favorites ----------- Power Micro Nuclear Core Engine Ion Engine Power Core Micro Nuclear Core Reactor Antimatter Reactor Propulsion Improved Gravmag System Treads Light Treads Hover Unit Improved Gravmag System Utility Large Storage Unit Device Advanced Weight Redist. System Storage Large Storage Unit Processor Targeting Computer Hackware Hacking Suite Protection Light Armor Plating Weapon Plasma Cannon Energy Cannon Plasma Cannon Ballistic Gun Assault Rifle Ballistic Cannon Light Cannon Launcher Grenade Launcher Special Weapon Mining Laser Impact Weapon Impact Mace Special Melee Weapon Datajack Build | -11 -10 -10 -10 -9 -8 -7 -7 -6 -6 -6 -6 ------- Run | Scr Mat Min Exi Min Mat Fac DSF Fac Was Fac Low Slots Evolved 8 | . . . . . 4 2 . 2 . . . Power 1 | . . . . . . . . 1 . . . Propulsion 3 | . . . . . 1 1 . 1 . . . Utility 3 | . . . . . 2 1 . . . . . Weapon 1 | . . . . . 1 . . . . . . Parts Attached 99 | 8 8 2 1 2 17 2 12 22 6 17 2 Power 15 | 1 1 . . 1 3 . . 5 2 2 . Engine 7 | 1 1 . . 1 3 . . 1 . . . Core 7 | . . . . . . . . 4 1 2 . Reactor 1 | . . . . . . . . . 1 . . Propulsion 18 | 2 . . . . 5 1 5 2 . 2 1 Treads 8 | 2 . . . . 5 . 1 . . . . Leg . | . . . . . . . . . . . . Wheel . | . . . . . . . . . . . . Hover 10 | . . . . . . 1 4 2 . 2 1 Flight . | . . . . . . . . . . . . Utility 30 | 2 1 1 . . 6 1 1 7 3 8 . Device 19 | 1 1 . . . 2 . 1 6 2 6 . Storage 3 | 1 . . . . 1 . . . . 1 . Processor 3 | . . 1 . . 1 . . . 1 . . Hackware 3 | . . . . . 1 . . 1 . 1 . Protection 2 | . . . . . 1 1 . . . . . Artifact . | . . . . . . . . . . . . Weapon 36 | 3 6 1 1 1 3 . 6 8 1 5 1 Energy Gun . | . . . . . . . . . . . . Energy Cannon 14 | . 2 1 . . 2 . 4 3 1 1 . Ballistic Gun 3 | 3 . . . . . . . . . . . Ballistic Cannon 1 | . 1 . . . . . . . . . . Launcher 3 | . 1 . . 1 . . . . . . 1 Special Weapon 2 | . 2 . . . . . . . . . . Impact Weapon 6 | . . . . . . . . 3 . 3 . Slashing Weapon . | . . . . . . . . . . . . Piercing Weapon . | . . . . . . . . . . . . Special Melee Weapon 7 | . . . 1 . 1 . 2 2 . 1 . Unidentified Prototypes 5 | . . . . . 2 . . . 1 2 . Parts Lost 11 | . . 1 1 . . . 1 2 . 1 5 Power 1 | . . . . . . . . . . . 1 Propulsion 3 | . . . 1 . . . . 1 . . 1 Utility 4 | . . 1 . . . . . 1 . 1 1 Weapon 3 | . . . . . . . 1 . . . 2 Highest Loss Streak 5 | . . 1 1 . . . 1 1 . 1 5 To Critical Strikes . | . . . . . . . . . . . . Average Slot Usage (%) 96 | . 100 99 96 85 92 100 100 99 100 100 91 Engine 8 | . 14 14 14 14 8 7 7 . . . . Core 4 | . . . . . . . . 12 13 13 12 Treads 14 | . 28 28 24 14 15 23 18 . . . . Hover 11 | . . . . . 4 7 11 32 33 33 26 Device 8 | . 14 3 . . 8 7 8 12 13 13 12 Storage 10 | . 14 14 14 14 9 7 7 6 6 6 6 Processor 9 | . . 10 14 14 16 7 7 6 6 6 6 Hackware 2 | . . . . . . 7 7 6 6 6 6 Energy Cannon 15 | . 7 14 14 14 25 23 21 13 20 12 5 Ballistic Gun 1 | . 12 . . . . . . . . . . Launcher 3 | . . 14 . 12 . . . . . . . Impact Weapon 1 | . . . . . . . . 3 . 5 6 Special Melee Weapon 1 | . . . 14 1 1 . 1 1 . . 5 Naked Turns . | . . . . . . . . . . . . Heaviest Build 64 | 12 17 17 16 17 45 47 53 59 59 64 59 Greatest Support 69 | 40 40 40 40 20 60 60 60 59 59 63 69 Greatest Overweight (x) 1 | . . . . . 1 . 1 1 . 1 . Average Overweight (x) . | . . . . . . . . . . . . Largest Inventory Capacity 15 | 8 8 8 8 8 15 15 15 15 15 15 15 Average Capacity 11 | 6 8 8 8 8 14 15 15 15 15 15 15 Most Carried 15 | 3 8 8 8 8 15 14 15 15 15 15 15 Average Carried 10 | 1 6 7 7 7 10 13 14 14 14 14 13 Final Capacity 15 | 8 8 8 8 8 15 15 15 15 15 15 15 Final Carried 15 | 3 8 7 8 8 15 13 15 14 15 15 14 Class Distribution -------------------- 80% | Mutant 10% | Skirmisher 7% | Scavenger-Skirmisher Dominant Class ---------------- Mutant | -10/Materials Mutant | -10/Mines Mutant | -10/Exiles Mutant | -9/Mines Skirmisher | -8/Materials Scavenger-Mutant | -7/Factory Scavenger-Skirmisher | -7/DSF Mutant | -6/Factory Mutant | -6/Waste Mutant | -6/Factory Mutant | -6/Lower Caves Resources | -11 -10 -10 -10 -9 -8 -7 -7 -6 -6 -6 -6 ----------- Run | Scr Mat Min Exi Min Mat Fac DSF Fac Was Fac Low Matter Collected 1510 | 280 185 245 . 36 170 . 55 310 30 195 4 Remotely . | . . . . . . . . . . . . Salvage Created 2335 | 101 248 123 . 7 411 . 261 269 . 788 127 Parts 85 | 5 18 6 . . 17 . 14 4 . 20 1 Haulers Intercepted 4 | . 1 . . . 1 . . 1 . 1 . Recyclers Shooed 2 | . . . . . . . . 1 . 1 . Parts Field Recycled . | . . . . . . . . . . . . Retrieved Matter . | . . . . . . . . . . . . Parts Self-Destructed 1 | . . . . . . . . . . . 1 Prevented . | . . . . . . . . . . . . Kills | -11 -10 -10 -10 -9 -8 -7 -7 -6 -6 -6 -6 ------- Run | Scr Mat Min Exi Min Mat Fac DSF Fac Was Fac Low Combat Hostiles Destroyed 31 | . 5 4 . 1 5 . 4 3 . 4 5 Melee 1 | . . . . . . . . . . 1 . Cannons 17 | . 5 2 . . 5 . 3 2 . . . AOE 8 | . . 2 . 1 . . . . . . 5 Classes Destroyed 14 | 2 4 . . 1 1 . 4 . . 2 . Worker 1 | . . . . . . . . . . 1 . Builder 2 | . 1 . . . . . . . . 1 . Tunneler 1 | 1 . . . . . . . . . . . Hauler 4 | . 1 . . . 1 . . 1 . 1 . Recycler 4 | 1 . . . . 1 . . . . 2 . Mechanic 1 | . . . . . . . . . . 1 . Watcher 5 | . 1 . . . 1 . . . . 3 . Grunt 18 | . 5 4 . . 4 . . . . . 5 Sentry 2 | . . . . . 1 . . . . 1 . Specialist 3 | . . . . . . . 1 . . 2 . Hunter 4 | . . . . . . . 1 3 . . . Programmer 2 | . . . . . . . 1 . . 1 . Heavy 1 | . . . . . . . 1 . . . . Assembled 1 | . . . . 1 . . . . . . . Best Kill Streak 6 | 2 2 2 . 1 2 . 1 2 . 6 5 Combat Bots Only 5 | . 2 2 . 1 2 . 1 2 . 2 5 Max Kills in Single Turn 1 | 1 1 1 . 1 1 . 1 1 . 1 1 Gunslinging . | . . . . . . . . . . . . Exploded 1 | . . 1 . 1 . . . . . . 1 Melee 1 | . . . . . . . . . . 1 . Uniques/NPCs Destroyed . | . . . . . . . . . . . . Combat | -11 -10 -10 -10 -9 -8 -7 -7 -6 -6 -6 -6 -------- Run | Scr Mat Min Exi Min Mat Fac DSF Fac Was Fac Low Damage Taken 2940 | . 207 263 163 . 253 . 787 439 . 140 688 Core 461 | . 21 71 34 . 35 . 45 100 . 16 139 Absorbed by Shields 292 | . . . . . . . . . . 42 250 Regen/Repaired (Parts) 397 | . . . . . 88 . . 13 . 296 . Core Remaining (%) 83 | 100 . . . 49 93 . 93 . . . . Volleys Fired 98 | 2 26 15 . 1 19 . 19 9 . . 7 Largest 3 | 2 2 1 . 1 3 . 3 3 . . 1 Hottest 240 | 40 100 60 . 33 195 . 240 240 . . 43 Shots Fired 193 | 4 43 15 . 1 49 . 57 16 . . 8 Gun 21 | 4 17 . . . . . . . . . . Cannon 151 | . 17 11 . . 49 . 57 16 . . 1 Launcher 12 | . . 4 . 1 . . . . . . 7 Special 9 | . 9 . . . . . . . . . . Kinetic 30 | 4 26 . . . . . . . . . . Thermal 151 | . 17 11 . . 49 . 57 16 . . 1 Explosive 12 | . . 4 . 1 . . . . . . 7 Electromagnetic . | . . . . . . . . . . . . Robot Hit Streak 11 | 2 5 4 . . 11 . 11 10 . . 4 Robot Miss Streak 3 | 1 2 3 . . 2 . 3 3 . . 1 Penetration Max . | . . . . . . . . . . . . Secondary Targets . | . . . . . . . . . . . . Shots Hit Robots 141 | 3 20 7 3 . 28 . 38 20 . 17 5 Core Hits 68 | 3 11 8 . 2 13 . 8 4 . 3 16 Critical Kills . | . . . . . . . . . . . . Critical Parts Destroyed 6 | . . . . . . . . . . 6 . Critical Strikes 7 | . 1 . . . . . . . . 6 . Blast 1 | . 1 . . . . . . . . . . Smash 6 | . . . . . . . . . . 6 . Melee Attacks 76 | . . . 3 . . . . 32 . 39 2 Impact 65 | . . . . . . . . 24 . 39 2 Slashing . | . . . . . . . . . . . . Piercing . | . . . . . . . . . . . . Sneak Attacks 15 | . . . 3 . . . . 7 . 5 . Combat Hostiles 1 | . . . . . . . . 1 . . . Follow-up Attacks . | . . . . . . . . . . . . Damage Inflicted 5215 | 41 307 379 . 46 643 . 959 698 . 998 1144 Guns 113 | 41 72 . . . . . . . . . . Cannons 2148 | . 211 103 . . 643 . 959 232 . . . Explosions 1430 | . . 276 . 46 . . . . . . 1108 Melee 1500 | . . . . . . . . 466 . 998 36 Ramming . | . . . . . . . . . . . . Kinetic 219 | 41 178 . . . . . . . . . . Thermal 2066 | . 129 103 . . 643 . 959 232 . . . Explosive 1430 | . . 276 . 46 . . . . . . 1108 Electromagnetic . | . . . . . . . . . . . . Impact 1500 | . . . . . . . . 466 . 998 36 Slashing . | . . . . . . . . . . . . Piercing . | . . . . . . . . . . . . Highest Corruption 5 | . . . . . . . . 5 . 2 2 Average Corruption 2 | . . . . . . . . 4 . 1 2 Corruption Purged 5 | . . . . . . . . 5 . . . Corruption Blocked . | . . . . . . . . . . . . Effects 12 | . . . . . . . . 7 . 2 3 Message Errors 3 | . . . . . . . . 3 . . . Matter Fused 3 | . . . . . . . . 2 . . 1 Energy Discharges 1 | . . . . . . . . . . 1 . Data Loss (minor) 3 | . . . . . . . . 1 . 1 1 Misfires 1 | . . . . . . . . . . . 1 Alerts 1 | . . . . . . . . 1 . . . Overload Shots . | . . . . . . . . . . . . Overflow Damage 675 | . . 35 . . 16 . . 85 . 527 12 Projectiles 31 | . . 15 . . 16 . . . . . . Explosions 32 | . . 20 . . . . . . . . 12 Melee 612 | . . . . . . . . 85 . 527 . Knockbacks 9 | . 2 . . . . . . 3 . 4 . Impact 7 | . . . . . . . . 3 . 4 . Kinetic 2 | . 2 . . . . . . . . . . Secondary . | . . . . . . . . . . . . Self-Inflicted Damage 123 | . . 49 . . . . . . . . 74 Shots 6 | . . 3 . . . . . . . . 3 Rammed . | . . . . . . . . . . . . Targets Rammed . | . . . . . . . . . . . . Kicked . | . . . . . . . . . . . . Crushed . | . . . . . . . . . . . . Highest Temperature 378 | . 135 142 . . 378 . 254 323 . . 60 Average Temperature 70 | . 30 54 . . 128 . 67 113 . . 25 Received Heat Transfer 658 | . 117 141 . . 153 . . . . 5 242 Effects 1 | . . . . . . . . 1 . . . Interference 1 | . . . . . . . . 1 . . . Siege Activations . | . . . . . . . . . . . . Robots Corrupted . | . . . . . . . . . . . . Combat Hostiles . | . . . . . . . . . . . . Parts Fried 25 | . . . . . . . . 2 . 23 . Impact Corruptions 20 | . . . . . . . . 3 . 17 . Robots Melted 1 | . . . . . . . 1 . . . . Combat Hostiles 1 | . . . . . . . 1 . . . . Parts Melted 14 | . 1 . . . 3 . 5 5 . . . Heat Transferred 3822 | . 272 222 . . 1110 . 1768 450 . . . Parts Sabotaged . | . . . . . . . . . . . . Parts Stolen . | . . . . . . . . . . . . Parts Stripped . | . . . . . . . . . . . . Power Chain Reactions . | . . . . . . . . . . . . Missiles Intercepted . | . . . . . . . . . . . . Alert | -11 -10 -10 -10 -9 -8 -7 -7 -6 -6 -6 -6 ------- Run | Scr Mat Min Exi Min Mat Fac DSF Fac Was Fac Low Peak Influence 325 | 10 194 187 . 27 141 20 109 139 58 325 . Initial 56 | . 6 10 . . . 20 14 56 29 28 . Average 64 | 4 68 39 . 9 33 20 62 81 38 152 . Maximum Alert Level 1 | . . . . . . . . . . 1 . Low Security (%) 94 | 100 100 100 . 100 100 100 100 100 100 69 . Level 1 5 | . . . . . . . . . . 30 . Level 2 . | . . . . . . . . . . . . Level 3 . | . . . . . . . . . . . . Level 4 . | . . . . . . . . . . . . Level 5 . | . . . . . . . . . . . . High Security . | . . . . . . . . . . . . Max Security . | . . . . . . . . . . . . Squads Dispatched 17 | . 1 . . . 2 . 1 2 . 11 . Investigation 12 | . 1 . . . 1 . . 2 . 8 . Extermination 1 | . . . . . . . . . . 1 . Reinforcement 4 | . . . . . 1 . 1 . . 2 . Assault . | . . . . . . . . . . . . Garrison . | . . . . . . . . . . . . Intercept . | . . . . . . . . . . . . Searches Triggered . | . . . . . . . . . . . . Construction Impeded . | . . . . . . . . . . . . Haulers Reinforced . | . . . . . . . . . . . . Active Scanning Responses . | . . . . . . . . . . . . Cargo Convoy Interrupts . | . . . . . . . . . . . . Stealth | -11 -10 -10 -10 -9 -8 -7 -7 -6 -6 -6 -6 --------- Run | Scr Mat Min Exi Min Mat Fac DSF Fac Was Fac Low Distress Signals 3 | . 1 . . . 1 . . . . 1 . Communications Jammed . | . . . . . . . . . . . . Distress Signals . | . . . . . . . . . . . . Times Spotted 53 | . 8 4 1 . 9 . 4 5 3 10 9 Peak Tracking Total 8 | . 2 2 1 . 4 . 1 2 2 3 8 Tactical Retreats 4 | . . . . . . . . . . 1 3 Traps | -11 -10 -10 -10 -9 -8 -7 -7 -6 -6 -6 -6 ------- Run | Scr Mat Min Exi Min Mat Fac DSF Fac Was Fac Low Traps Triggered 5 | . . . . . . . 1 2 . 2 . Indirectly . | . . . . . . . . . . . . Trap Hack Attempts 6 | . . . . . . . . 6 . . . Triggered . | . . . . . . . . . . . . Disarmed . | . . . . . . . . . . . . Reprogrammed 1 | . . . . . . . . 1 . . . Reused . | . . . . . . . . . . . . Traps Extracted . | . . . . . . . . . . . . Installed . | . . . . . . . . . . . . Triggered . | . . . . . . . . . . . . Machines | -11 -10 -10 -10 -9 -8 -7 -7 -6 -6 -6 -6 ---------- Run | Scr Mat Min Exi Min Mat Fac DSF Fac Was Fac Low Machines Disabled 3 | . 1 1 . . . . . . . 1 . Max in Single Turn 1 | . 1 1 . . . . . . . 1 . Garrison Access 2 | . . . . . . . . 1 . 1 . Machines Sabotaged . | . . . . . . . . . . . . Garrisons Compromised . | . . . . . . . . . . . . Overloaded Fab Kills . | . . . . . . . . . . . . Hacking | -11 -10 -10 -10 -9 -8 -7 -7 -6 -6 -6 -6 --------- Run | Scr Mat Min Exi Min Mat Fac DSF Fac Was Fac Low Machines Accessed 42 | . 6 1 2 . 7 1 . 7 . 18 . Terminals 22 | . 5 1 . . 5 1 . 2 . 8 . Fabricators 2 | . . . . . . . . . . 2 . Repair Stations 4 | . . . . . 1 . . 1 . 2 . Recycling Units 7 | . 1 . . . 1 . . 3 . 2 . Scanalyzers 3 | . . . . . . . . . . 3 . Garrison Access 2 | . . . . . . . . 1 . 1 . Total Hacks 109 | . 14 2 2 . 22 1 . 15 . 53 . Successful 65 | . 6 1 2 . 13 1 . 11 . 31 . Failed 44 | . 8 1 . . 9 . . 4 . 22 . Catastrophic 5 | . 1 1 . . 1 . . 1 . 1 . Database Lockouts . | . . . . . . . . . . . . Manual 36 | . 8 2 1 . 10 . . 4 . 11 . Terminals 64 | . 12 2 . . 16 1 . 6 . 27 . Fabricators 3 | . . . . . . . . . . 3 . Repair Stations 14 | . . . . . 4 . . 3 . 7 . Recycling Units 14 | . 2 . . . 2 . . 5 . 5 . Scanalyzers 9 | . . . . . . . . . . 9 . Garrison Access 3 | . . . . . . . . 1 . 2 . Terminal Hacks 24 | . 3 1 2 . 5 1 . 2 . 10 . Record 1 | . . . 1 . . . . . . . . Part Schematic 5 | . . 1 . . 1 . . . . 3 . Robot Analysis 1 | . 1 . . . . . . . . . . Prototype ID Bank 2 | . . . . . 1 . . 1 . . . Open DSF 1 | . . . . . . 1 . . . . . Branch Access Points 3 | . 1 . . . 1 . . 1 . . . Terminal Index 2 | . 1 . . . . . . . . 1 . Scanalyzer Index 1 | . . . . . . . . . . 1 . Unreport Threat 3 | . . . . . 1 . . . . 2 . Locate Traps 2 | . . . . . . . . . . 2 . Recall Investigation 1 | . . . . . . . . . . 1 . Zone Layout 1 | . . . . . 1 . . . . . . EX-Prototype ID Bank 1 | . . . 1 . . . . . . . . Fabricator Hacks 1 | . . . . . . . . . . 1 . Network Status 1 | . . . . . . . . . . 1 . Repair Station Hacks 11 | . . . . . 3 . . 2 . 6 . Scan Component 5 | . . . . . 1 . . 1 . 3 . Repair 5 | . . . . . 1 . . 1 . 3 . Refit 1 | . . . . . 1 . . . . . . Recycling Unit Hacks 10 | . 1 . . . 2 . . 4 . 3 . Report Inventory 7 | . 1 . . . 1 . . 3 . 2 . Retrieve Components 3 | . . . . . 1 . . 1 . 1 . Scanalyzer 7 | . . . . . . . . . . 7 . Insert Component 3 | . . . . . . . . . . 3 . Analyze 4 | . . . . . . . . . . 4 . Garrison Access Hacks 2 | . . . . . . . . 1 . 1 . Seal Access 2 | . . . . . . . . 1 . 1 . Unauthorized Hacks 10 | . 2 . . . 3 . . 2 . 3 . Terminals 8 | . 1 . . . 3 . . 1 . 3 . Botnet 5 | . . . . . 2 . . 1 . 2 . Operators 3 | . 1 . . . 1 . . . . 1 . Fabricators . | . . . . . . . . . . . . Repair Stations . | . . . . . . . . . . . . Recycling Units 2 | . 1 . . . . . . 1 . . . Tunnel 2 | . 1 . . . . . . 1 . . . Scanalyzers . | . . . . . . . . . . . . Garrison Access . | . . . . . . . . . . . . Data Cores Recovered . | . . . . . . . . . . . . Used . | . . . . . . . . . . . . Hacking Detections 34 | . 5 1 . . 6 1 . 5 . 16 . Full Trace Events 10 | . 1 . . . 1 . . 1 . 7 . Feedback Events 1 | . . . . . . . . 1 . . . Hackware Fried 1 | . . . . . . . . 1 . . . Feedback Blocked . | . . . . . . . . . . . . Robot Schematics Acquired . | . . . . . . . . . . . . Robots Built . | . . . . . . . . . . . . Authchips . | . . . . . . . . . . . . Time . | . . . . . . . . . . . . Total Robot Build Rating . | . . . . . . . . . . . . Part Schematics Acquired 7 | . . 1 . . 1 . . . . 5 . Parts Built . | . . . . . . . . . . . . Authchips . | . . . . . . . . . . . . Time . | . . . . . . . . . . . . Total Part Build Rating . | . . . . . . . . . . . . Parts Repaired 5 | . . . . . 1 . . 1 . 3 . Time 244 | . . . . . 26 . . 19 . 199 . Parts Recycled . | . . . . . . . . . . . . Recycled Matter . | . . . . . . . . . . . . Retrieved Matter . | . . . . . . . . . . . . Retrieved Components 11 | . . . . . 1 . . 3 . 7 . Parts Scanalyzed 3 | . . . . . . . . . . 3 . Part Schematics Acquired 2 | . . . . . . . . . . 2 . Parts Damaged . | . . . . . . . . . . . . Bothacking | -11 -10 -10 -10 -9 -8 -7 -7 -6 -6 -6 -6 ------------ Run | Scr Mat Min Exi Min Mat Fac DSF Fac Was Fac Low Used RIF Installer . | . . . . . . . . . . . . Robots Hacked 6 | . . . 3 . . . . 3 . . . Non-combat 5 | . . . 2 . . . . 3 . . . Combat 1 | . . . 1 . . . . . . . . Robot Hacks Applied 8 | . . . 3 . . . . 5 . . . parse_system 6 | . . . 3 . . . . 3 . . . no_distress 1 | . . . . . . . . 1 . . . find_fabricator 1 | . . . . . . . . 1 . . . Relay Couplers Released . | . . . . . . . . . . . . Fabnet Peak Effective % . | . . . . . . . . . . . . Robots Rewired . | . . . . . . . . . . . . Allies Hacked . | . . . . . . . . . . . . Hacks Repelled . | . . . . . . . . . . . . Allies | -11 -10 -10 -10 -9 -8 -7 -7 -6 -6 -6 -6 -------- Run | Scr Mat Min Exi Min Mat Fac DSF Fac Was Fac Low Total Allies 19 | . . . . . . . . . 19 . . Largest Group 19 | . . . . . . . . . 19 13 . Highest-Rated Group 702 | . . . . . . . . . 702 525 . Highest-Rated Ally 50 | . . . . . . . . . 50 50 . Total Orders . | . . . . . . . . . . . . Ally Attacks 183 | . . . . . . . . . 130 53 . Total Damage 6597 | . . . . . . . . . 5219 1378 . Kills 19 | . . . . . . . . . 11 8 . Allies Corrupted 2 | . . . . . . . . . . 2 . Allies Melted . | . . . . . . . . . . . . Intel | -11 -10 -10 -10 -9 -8 -7 -7 -6 -6 -6 -6 ------- Run | Scr Mat Min Exi Min Mat Fac DSF Fac Was Fac Low Robot Analysis Total 1 | . 1 . . . . . . . . . . Derelict Logs Recovered 3 | . . 1 . 1 . . . . . . 1 Drone Launches . | . . . . . . . . . . . . Drone Recoveries . | . . . . . . . . . . . . Exploration | -11 -10 -10 -10 -9 -8 -7 -7 -6 -6 -6 -6 ------------- Run | Scr Mat Min Exi Min Mat Fac DSF Fac Was Fac Low Turns Passed 6243 | 86 595 798 501 705 1312 25 199 644 138 1051 189 Spaces Moved 4574 | 45 258 469 307 269 470 15 66 800 219 1402 254 Core 5 | 5 . . . . . . . . . . . Treads 1871 | 40 258 469 307 269 470 15 43 . . . . Legs . | . . . . . . . . . . . . Wheels . | . . . . . . . . . . . . Hover 2698 | . . . . . . . 23 800 219 1402 254 Flight . | . . . . . . . . . . . . Fastest Speed 44 | 50 160 160 160 160 160 160 48 44 44 44 58 Average Speed 97 | 147 160 160 160 160 193 160 124 44 44 48 58 Slowest Speed 245 | 160 160 160 160 160 240 160 245 98 44 102 58 Overloaded Moves . | . . . . . . . . . . . . Propulsion Burnouts . | . . . . . . . . . . . . Robots Hopped . | . . . . . . . . . . . . Cave-ins Triggered . | . . . . . . . . . . . . Exploration Rate (%) 49 | 4 58 98 60 60 43 1 87 25 85 40 32 Regions Visited 11 Branch Regions 4 Pre-discovered Areas 3 | . 1 . 1 . . . . 1 . . . Known Exits Taken 3 | . 1 . . . . 1 . . . 1 . Unknown Exits Taken 5 | 1 . 1 1 1 1 . . . . . . Scrap Searched 2 | . . 2 . . . . . . . . . Spaces Dug 91 | . 7 22 . 11 3 . . 15 . 19 14 Terrain Destroyed 164 | . 7 30 . 11 12 . . 15 . 19 70 Melee 34 | . . . . . . . . 15 . 19 . Projectile 19 | . 7 . . . 12 . . . . . . AOE 111 | . . 30 . 11 . . . . . . 70 Terrain Rammed . | . . . . . . . . . . . . Walls Destroyed . | . . . . . . . . . . . . Machines Disabled . | . . . . . . . . . . . . Actions | -11 -10 -10 -10 -9 -8 -7 -7 -6 -6 -6 -6 --------- Run | Scr Mat Min Exi Min Mat Fac DSF Fac Was Fac Low Total 6071 | 57 379 504 316 544 834 16 149 1027 259 1701 285 Wait 1065 | 1 74 12 . 268 310 . 21 123 26 218 12 Move 4564 | 44 257 468 306 268 469 14 65 800 218 1401 254 Hop . | . . . . . . . . . . . . Pick Up 66 | 2 8 3 3 2 10 . 7 18 4 6 3 Fast Attach 22 | 7 2 . . . 6 . 2 1 2 2 . Attach 15 | . . 1 . . 3 2 1 5 . 2 1 Detach 4 | . . . . . 3 . . . . . 1 Swap 62 | 1 6 1 1 2 8 . 9 16 4 13 1 Drop 67 | . 6 4 3 3 6 . 12 17 5 7 4 Fire 98 | 2 26 15 . 1 19 . 19 9 . . 7 Melee 76 | . . . 3 . . . . 32 . 39 2 Ram . | . . . . . . . . . . . . Kick . | . . . . . . . . . . . . Crush . | . . . . . . . . . . . . Escape Stasis 26 | . . . . . . . 13 . . 13 . Rewire . | . . . . . . . . . . . . Trap 6 | . . . . . . . . 6 . . . Miscellaneous . | . . . . . . . . . . . . Route ------- -11/Scrapyard -10/Materials (discovered 2 exits: [*Mat] / *Min) -10/Mines (discovered 3 exits: [*Mat x2] / *Exi) -10/Exiles -9/Mines (discovered 2 exits: *Mat x2) -8/Materials (discovered 2 exits: *Fac x2) -7/Factory -7/DSF -6/Factory (discovered 2 exits: Low x2) -6/Waste -6/Factory (discovered 2 exits: [*Fac] / *Low) -6/Lower Caves History --------- Turn | Location | Event 52 | -11/Scrapyard | Discovered new exit (range 15) 87 | -11/Scrapyard | Entered Materials 305 | -10/Materials | Build established: Mutant 343 | -10/Materials | Identified exit to Mines 434 | -10/Materials | Discovered new exit (range 16) 682 | -10/Materials | Entered Mines 688 | -10/Mines | Met a Derelict bent on vengeance 726 | -10/Mines | Joined a pair of Derelicts in attacking an 0b10 outpost 968 | -10/Mines | Discovered new exit (range 7) 1150 | -10/Mines | Discovered new exit (range 16) 1333 | -10/Mines | Learned Materials emergency access door positions 1474 | -10/Mines | Deemed a non-threat by the Exiles lab entrance 1474 | -10/Mines | Discovered new exit (range 5) 1480 | -10/Mines | Entered Exiles 1521 | -10/Exiles | Met 8R-AWN 1553 | -10/Exiles | Met EX-HEX 1609 | -10/Exiles | Met EX-BIN 1630 | -10/Exiles | Aligned with FarCom system 1631 | -10/Exiles | Given EX-Vault access code 1668 | -10/Exiles | Opened EX-Vault 1703 | -10/Exiles | Warned to stay clear of 0b10 Research branches 1733 | -10/Exiles | Exiles lab attacked by MAIN.C 1801 | -10/Exiles | Found Firepult 1862 | -10/Exiles | Core integrity fell below 50% 1888 | -10/Exiles | Learned location of Zion (-6) 1963 | -10/Exiles | Discovered new exit (range 12) 1981 | -10/Exiles | Left Exiles lab with Firepult 1981 | -10/Exiles | Entered Mines 1992 | -9/Mines | Received a Rocket Launcher from a helpful Derelict 2013 | -9/Mines | Assembled infested the area 2518 | -9/Mines | Discovered new exit (range 6) 2586 | -9/Mines | Learned Materials terminal intel 2589 | -9/Mines | Discovered new exit (range 13) 2659 | -9/Mines | Found a damaged Exp. Sensor Array with a note attached 2663 | -9/Mines | Found Prototype Device 2686 | -9/Mines | Entered Materials 2686 | -8/Materials | Evolved 4 slots: Propulsion x1, Utility x2, Weapon x1 2686 | -8/Materials | Identified Exp. Sensor Array 2688 | -8/Materials | Loaded intel: 12 terminal locations 2895 | -8/Materials | Repaired Lgt. Treads 3144 | -8/Materials | Build established: Skirmisher 3588 | -8/Materials | Discovered new exit (range 17) 3933 | -8/Materials | Discovered new exit (range 8) 3998 | -8/Materials | Entered Factory 3998 | -7/Factory | Evolved 2 slots: Propulsion x1, Utility x1 4023 | -7/Factory | Identified exit to DSF 4023 | -7/Factory | Entered DSF 4089 | -7/DSF | Additional patrols routed to DSF 4214 | -7/DSF | Discovered new exit (range 15) 4222 | -7/DSF | Entered Factory 4222 | -6/Factory | Evolved 2 slots: Power x1, Propulsion x1 4312 | -6/Factory | Identified exit to Lower Caves 4312 | -6/Factory | Hacking Suite fried by hacking feedback 4386 | -6/Factory | Found Faulty Exp. Targeting Computer 4480 | -6/Factory | Repaired Adv. Weight Redist. System 4501 | -6/Factory | Build established: Mutant 4866 | -6/Factory | Sucked down chute 4866 | -6/Factory | Entered Waste 4875 | -6/Waste | Warlord forces began an assault 4895 | -6/Waste | Spotted C-40 Crusher 4902 | -6/Waste | Spotted C-40 Crusher 4903 | -6/Waste | Allies destroyed C-40 Crusher 4903 | -6/Waste | Allies destroyed C-40 Crusher 4906 | -6/Waste | Spotted C-40 Crusher 4906 | -6/Waste | Spotted C-40 Crusher 4920 | -6/Waste | Spotted C-40 Crusher 4922 | -6/Waste | Allies destroyed C-40 Crusher 4925 | -6/Waste | Allies destroyed C-40 Crusher 4927 | -6/Waste | Spotted C-40 Crusher 4945 | -6/Waste | Allies destroyed C-40 Crusher 4971 | -6/Waste | Discovered new exit (range 12) 5004 | -6/Waste | Entered Factory 5004 | -6/Factory | Accompanied by 13 allies 5043 | -6/Factory | Repaired Broken Antigrav Array 5127 | -6/Factory | Discovered new exit (range 9) 5616 | -6/Factory | Repaired Broken Exp. Cooling System 5661 | -6/Factory | Repaired Plasma Cannon 6040 | -6/Factory | Discovered exit to Lower Caves (range 15) 6055 | -6/Factory | Entered Lower Caves 6175 | -6/Lower Caves | Learned Factory garrison access intel 6179 | -6/Lower Caves | Spotted B-75 Beast 6244 | -6/Lower Caves | Self-destructed Last Messages --------------- 06225_ Carbon-fiber Leg fries itself beyond repair. 06229_ System corrupted: Matter fused (-8). 06231_ Imp. Datajack destroyed. 06231_ Critical hit (Burn: +37). 06232_ Mic. Nuclear Core destroyed. 06232_ G-50 Soldier destroyed. 06233_ The unstable cave ceiling collapses. 06234_ G-50 Soldier destroyed. 06237_ The unstable cave ceiling collapses. 06237_ Destroyed Hvy. Laser. 06237_ G-50 Soldier destroyed. 06239_ G-67 Veteran destroyed. 06239_ Force Field destroyed. 06239_ Destroyed Force Field. 06241_ The unstable cave ceiling collapses. 06242_ Destroyed Hvy. Laser. 06242_ Imp. Gravmag System destroyed. 06242_ Destroyed Imp. Gravmag System. 06242_ Lrn. Missile Launcher destroyed. 06244_ The unstable cave ceiling collapses. Map ----- +----------------------------------------------------+ | | | | | | | | | ?????????????????????????????????????????????????? | | ?????????????????????????????????????????????????? | | ?????????????????????????????????????????????????? | | ?????????????????????????????????????????????????? | | ?????????????????????????????????????????????????? | | ?????????????????????????????????????????????????? | | ?????????????????????????????????????????????????? | | ?????????????????????????????????????????????????? | | ?????????????????????????????????????????????????? | | ?????????????????????????????????????????????????? | | ?????????????????????????????????????????????????? | | ?????????????????????????????????????????????????? | | ?????????????????????????????????????????????????? | | ??????????????????????????#########??????????????? | | ????????????????????????## # ####???????????? | | ????????????????????????# #####??????## | | ???????????????????????? # ## #?????## | | ???????????????????????? #?????# | | ????????????????????????# ####### # | | ???????????????????????## g # | | ??????????????????????## # | | ??????????????????????# @ ######### | | ??????????????????????### g #???????? | | ????????????????????????## # ###?????? | | ?????????????????????????? ###???? | | ??????????????????????????## ## ##??? | | ????????????????????????????###??# ##?? | | ?????????????????????????????????# # ##? | | ????????????????????????????????## ## #? | | ????????????????????????????????# # | | ????????????????????????????????### ## # | | ??????????????????????????????????# #?### # | | ???????????????????????????????#### ##???# # | | ???????????????????????????????# ###?? # | | ??????????????????????????????## ##?? # | | ??????????????????????????????# #??? # | | ??????????????????????????????# ##???# | | ?????????????????????????????## #???? | | ?????????????????????????????# ####???? | | ?????????????????????????????# #??????? | | ?????????????????????????????# ## #??????? | | ????????????????????????????## ## #?###??????? | | ??????????????????????????### ## ##?????????? | | ???????????????????? ## " ########### | | ???????????????????? "%" | | ???????????????????? " | +----------------------------------------------------+ Best States ------------- Heat Dissipation 64 Energy Generation 29 Energy Capacity 495 Matter Stores 300 Matter Capacity 300 Sight Range 18 Robot Scan Range 20 Terrain Scan Density 10 Cloak Strength 2 Additional Mass Support 9 Armor Coverage 150 Evasion (%) 56 Targeting Accuracy 8 Recoil Reduction 3 Offensive Hacking 12 Authchip Count 2 Item Schematics ----------------- Hcp. Storage Unit | -10/Mines | Hacked Hvy. Armor Plating | -8/Materials | Hacked Hyp. Gauss Rifle | -6/Factory | Hacked Hardcell Cannon | -6/Factory | Hacked Antigrav Array | -6/Factory | Scanalyzed Imp. Transmission Jammer | -6/Factory | Hacked Exp. Cooling System | -6/Factory | Scanalyzed Robot Schematics ------------------ None Fabricated ------------ Nothing Alien Tech Used ----------------- None Achievements -------------- None Challenges ------------ None Game ------ Seed TransmissionLegRouter Manual? 0 Play Time 01:54:02 Cumulative 49.4 hours Start 2022.07.23 @ 11:15:52 End 2022.07.24 @ 11:29:45 Sessions 7 Manual Loads 0 Difficulty Rogue Special Mode None Game No. 123 Rogue 123 Adventurer 0 Explorer 0 Win Type - Total 1 Types 0/0/0/1/0/0/0/0/0 Lore% 54 Gallery% 62 Achievement% 47 Wizard Run 0 Options --------- ASCII 0 Keyboard 0 Movement Numpad Keybinds 0 Fullscreen 1 Font 14/SmallcapsGlow Map View 84x54 Tactical HUD 1 Map Filters NONE Filters NONE Steam 1 RUN: 0a2c8061-8688-4cb9-bdce-70ad08155772